bitfinex-derivatives/quotes_BNBF0:USTF0_20250101
["timestamp","ask_amount","ask_price","bid_price","bid_amount"]
[1735751789932,0.26142889,704.59,703.76,1.06473081]
[1735751790434,0.26142889,704.59,703.75,1.06473081]
[1735751790732,0.26143729,704.58,703.75,1.06473081]
[1735751790932,0.26143729,704.57,703.75,1.06473081]
[1735751791132,0.26143729,704.56,703.75,1.06473081]
[1735751791332,0.26143729,704.55,703.75,1.06473081]
[1735751791534,0.26143729,704.54,703.73,1.06473081]
[1735751791834,0.28384899,704.6,703.73,1.06473081]
[1735751792033,0.26144169,704.59,703.73,1.06473081]
[1735751792633,0.26144114,704.58,703.73,1.06473081]
[1735751792828,0.26144114,704.57,703.72,1.06473081]
[1735751793033,0.26144114,704.56,703.72,1.06473081]
[1735751793236,0.28384899,704.6,703.72,1.06473081]
[1735751793428,0.26144085,704.59,703.72,1.06473081]
[1735751793638,0.28384899,704.6,703.72,1.06473081]
[1735751795035,0.26145296,704.59,703.64,1.06473081]
[1735751795229,0.28384899,704.6,703.64,1.06473081]
[1735751797032,0.28384899,704.6,703.68,1.06473081]
[1735751798232,0.28384899,704.6,703.71,1.06473081]
[1735751799537,0.28384899,704.6,703.7,1.06473081]
[1735751800534,0.28384899,704.6,703.71,1.06473081]
[1735751802936,0.28384899,704.6,703.72,1.06473081]
[1735751804037,0.28384899,704.6,703.71,1.06473081]
[1735751805137,0.28384899,704.6,703.72,1.06473081]
[1735751807938,0.28384899,704.6,703.73,1.06473081]
[1735751809134,0.28384899,704.6,703.72,1.06473081]
[1735751810632,0.26142501,704.59,703.72,1.06473081]
[1735751810837,0.26142501,704.59,703.38,0.72664908]
[1735751810838,0.26142501,704.59,703.78,1.06473081]
[1735751811235,0.28384899,704.6,703.78,1.06473081]
[1735751811939,0.28384899,704.6,703.77,1.06473081]
[1735751812940,0.26142689,704.59,703.79,1.06473081]
[1735751813837,0.2614302,704.58,703.79,1.06473081]
[1735751814037,0.28384899,704.6,703.79,1.06473081]
[1735751814234,0.26142954,704.59,703.79,1.06473081]
[1735751814436,0.26142837,704.58,703.79,1.06473081]
[1735751814637,0.28384899,704.6,703.79,1.06473081]
[1735751815641,0.28384899,704.6,703.81,1.06473081]
[1735751819846,0.28384899,704.6,703.82,1.06473081]
[1735751821947,0.28384899,704.6,703.83,1.06473081]
[1735751822751,0.28384899,704.6,703.82,1.06473081]
[1735751822947,0.26142466,704.59,703.82,1.06473081]
[1735751823349,0.28384899,704.6,703.82,1.06473081]
[1735751824051,0.26142878,704.59,703.81,1.06473081]
[1735751824953,0.28384899,704.6,703.81,1.06473081]
[1735751825552,0.28384899,704.6,703.8,1.06473081]
[1735751826653,0.28384899,704.6,703.82,1.06473081]
[1735751827757,0.28384899,704.6,703.74,1.06473081]
[1735751829056,0.28384899,704.6,703.75,1.06473081]
[1735751830358,0.28384899,704.6,703.76,1.06473081]
[1735751831556,0.28384899,704.6,703.69,1.06473081]
[1735751832651,0.28384899,704.6,703.67,1.06473081]
[1735751834058,0.28384899,704.6,703.66,1.06473081]
[1735751835354,0.28384899,704.6,703.11,1.27742106]
[1735751835355,0.26147328,704.59,703.64,1.06473081]
[1735751835754,1.74458583,704.59,703.64,1.06473081]
[1735751835959,0.26147328,704.58,703.64,1.06473081]
[1735751836661,0.26147328,704.58,702.96,2.17339001]
[1735751836662,1.05845224,704.57,703.55,1.06473081]
[1735751836857,0.2614944,704.56,703.55,1.06473081]
[1735751837461,0.26149752,704.55,703.55,1.06473081]
[1735751837761,0.26149752,704.54,703.49,1.06473081]
[1735751837961,1.05845224,704.56,703.49,1.06473081]
[1735751837962,0.26149752,704.55,703.49,1.06473081]
[1735751838158,0.26149752,704.54,703.49,1.06473081]
[1735751838360,0.26149752,704.53,703.49,1.06473081]
[1735751838556,1.05845224,704.56,703.49,1.06473081]
[1735751838863,0.26148802,704.55,703.47,1.06473081]
[1735751839062,0.26148802,704.54,703.47,1.06473081]
[1735751839258,0.26148802,704.53,703.47,1.06473081]
[1735751839459,0.26149128,704.52,703.47,1.06473081]
[1735751839660,2.54156479,704.59,703.47,1.06473081]
[1735751839856,0.26149032,704.58,703.47,1.06473081]
[1735751840263,0.26149032,704.58,703.46,1.06473081]
[1735751841261,0.26149032,704.58,703.45,1.06473081]
[1735751842056,0.26148916,704.57,703.45,1.06473081]
[1735751842260,0.26148916,704.56,703.45,1.06473081]
[1735751842455,0.26148916,704.55,703.45,1.06473081]
[1735751842658,0.26148916,704.54,703.45,1.06473081]
[1735751842857,1.48311255,704.59,703.45,1.06473081]
[1735751843056,0.26150532,704.58,703.45,1.06473081]
[1735751843764,0.26150532,704.58,703.36,1.06473081]
[1735751845468,0.54536257,704.57,703.36,1.06473081]
[1735751845667,0.2615015,704.56,703.36,1.06473081]
[1735751845868,0.28386913,704.55,703.36,1.06473081]
[1735751846066,0.2615015,704.54,703.36,1.06473081]
[1735751846466,0.28386913,704.55,703.36,1.06473081]
[1735751846666,0.26152103,704.54,703.36,1.06473081]
[1735751846861,0.26152103,704.54,703.31,1.06473081]
[1735751847362,0.28386913,704.55,703.31,1.06473081]
[1735751847566,0.26152981,704.54,703.31,1.06473081]
[1735751847962,0.26152981,704.54,703.22,1.06473081]
[1735751848869,0.26152981,704.54,703.15,1.06473081]
[1735751850071,0.28386913,704.55,703.13,1.06473081]
[1735751850072,0.26154092,704.53,703.13,1.06473081]
[1735751850268,0.26154092,704.54,703.13,1.06473081]
[1735751850466,0.26154092,704.53,703.13,1.06473081]
[1735751850666,0.26154092,704.52,703.13,1.06473081]
[1735751850872,0.26154092,704.51,703.13,1.06473081]
[1735751851066,0.28386913,704.55,703.13,1.06473081]
[1735751851372,1.48352878,704.5,703.11,1.06473081]
[1735751852167,1.48352878,704.5,703.06,1.06473081]
[1735751853475,1.48352878,704.5,703.07,1.06473081]
[1735751854272,0.28386913,704.55,703.07,1.06473081]
[1735751855777,0.28386913,704.55,703.37,1.34907617]
[1735751856577,0.28386913,704.55,703.45,1.06473081]
[1735751857874,0.28386913,704.55,703.37,0.28434536]
[1735751857875,0.28386913,704.55,703.4,1.06473081]
[1735751859279,0.28386913,704.55,703.42,1.06473081]
[1735751860480,0.28386913,704.55,703.37,0.28434536]
[1735751860481,0.28386913,704.55,703.46,1.06473081]
[1735751861678,0.28386913,704.55,703.37,0.28434536]
[1735751861679,0.28386913,704.55,703.47,1.06473081]
[1735751862182,1.48294401,704.74,703.47,1.06473081]
[1735751862383,0.26139638,704.73,703.47,1.06473081]
[1735751862985,0.26139638,704.73,703.65,1.06473081]
[1735751863285,0.26140778,704.72,703.65,1.06473081]
[1735751863483,0.26140778,704.71,703.65,1.06473081]
[1735751863684,0.26140778,704.7,703.65,1.06473081]
[1735751863885,1.48294401,704.74,703.38,1.78849873]
[1735751863886,0.26140778,704.69,703.59,1.06473081]
[1735751864087,0.26140778,704.68,703.59,1.06473081]
[1735751864386,0.26140778,704.67,703.59,1.06473081]
[1735751864580,0.26140778,704.66,703.59,1.06473081]
[1735751864778,0.26140778,704.65,703.59,1.06473081]
[1735751864982,1.48294401,704.74,703.59,1.06473081]
[1735751865278,0.26140525,704.73,703.59,1.06473081]
[1735751865986,0.26140525,704.73,703.58,1.06473081]
[1735751867184,0.26140525,704.73,703.56,1.06473081]
[1735751868390,0.26140525,704.73,703.59,1.06473081]
[1735751868584,0.26139128,704.72,703.59,1.06473081]
[1735751868791,0.26139128,704.71,703.59,1.06473081]
[1735751868990,1.48294401,704.74,703.59,1.06473081]
[1735751869289,0.26138789,704.73,703.59,1.06473081]
[1735751869489,0.26138789,704.73,703.58,1.06473081]
[1735751870985,0.26138789,704.73,703.56,1.06473081]
[1735751871389,0.26139288,704.72,703.56,1.06473081]
[1735751871586,1.48294401,704.74,703.56,1.06473081]
[1735751871992,1.48294401,704.74,703.55,1.06473081]
[1735751873294,1.48294401,704.74,703.37,0.28434536]
[1735751873295,1.48294401,704.74,703.49,1.06473081]
[1735751875094,1.05845224,705.14,703.49,1.06473081]
[1735751875394,0.51903424,712.64,703.48,1.06473081]
[1735751875395,1.48279658,704.81,703.48,1.06473081]
[1735751875595,0.28363564,705.13,703.48,1.06473081]
[1735751875789,1.76622164,705.13,703.49,0.28429686]
[1735751879196,0.26137361,705.12,703.49,0.28429686]
[1735751879791,0.28364368,705.11,703.49,0.28429686]
[1735751880696,0.2613766,705.1,703.49,0.28429686]
[1735751880898,0.28365173,705.09,703.49,0.28429686]
[1735751881199,0.2613766,705.08,703.49,0.28429686]
[1735751882000,0.28365977,705.07,703.49,0.28429686]
[1735751882305,0.2613766,705.06,703.49,0.28429686]
[1735751883801,0.26138415,705.05,703.49,0.28429686]
[1735751884002,0.26138415,705.04,703.49,0.28429686]
[1735751884201,0.26138415,705.03,703.49,0.28429686]
[1735751884403,0.26138415,705.02,703.49,0.28429686]
[1735751884696,0.26138415,705.01,703.49,0.28429686]
[1735751884897,0.26138415,705.0,703.49,0.28429686]
[1735751885101,0.26138415,704.99,703.49,0.28429686]
[1735751885300,0.26138415,704.98,703.49,0.28429686]
[1735751885501,0.26138415,704.97,703.49,0.28429686]
[1735751885699,1.34211201,705.07,703.49,0.28429686]
[1735751885700,0.26138415,704.96,703.49,0.28429686]
[1735751886002,0.26138415,704.95,703.49,0.28429686]
[1735751886603,1.05845224,704.85,703.49,0.28429686]
[1735751886803,0.26138415,704.84,703.39,1.06473081]
[1735751887598,0.26138415,704.84,703.21,1.06473081]
[1735751887599,1.05845224,704.66,703.21,1.06473081]
[1735751887798,0.26138415,704.65,703.21,1.06473081]
[1735751888802,0.26138415,704.65,703.24,1.06473081]
[1735751888999,0.26138415,704.64,703.24,1.06473081]
[1735751889198,0.26138415,704.63,703.24,1.06473081]
[1735751889404,0.26138415,704.62,703.24,1.06473081]
[1735751889603,0.26138415,704.61,703.24,1.06473081]
[1735751889804,0.26138415,704.6,703.24,1.06473081]
[1735751890007,0.26138415,704.59,703.24,1.06473081]
[1735751890303,1.48302828,704.96,703.23,1.06473081]
[1735751890304,0.26138415,704.58,703.23,1.06473081]
[1735751890506,0.26138415,704.57,703.23,1.06473081]
[1735751890806,0.26138415,704.56,703.23,1.06473081]
[1735751891106,0.26138415,704.55,703.23,1.06473081]
[1735751891307,0.26138415,704.54,703.23,1.06473081]
[1735751891505,0.26160264,704.53,703.23,1.06473081]
[1735751891706,0.26160264,704.53,702.58,2.17339001]
[1735751891707,0.26160264,704.52,703.06,1.06473081]
[1735751891908,0.26160264,704.51,703.06,1.06473081]
[1735751892103,1.05845224,704.6,703.06,1.06473081]
[1735751892305,0.2616057,704.59,703.06,1.06473081]
[1735751892705,1.05845224,704.54,703.06,1.06473081]
[1735751893011,0.2616057,704.53,702.94,1.06473081]
[1735751894213,0.26161065,704.52,702.8,1.06473081]
[1735751894405,0.26161065,704.51,702.81,0.28457193]
[1735751894609,0.26161065,704.5,702.81,0.28457193]
[1735751894813,0.26161065,704.49,702.81,0.28457193]
[1735751895012,0.26161065,704.48,702.81,0.28457193]
[1735751895211,0.26161065,704.47,702.81,0.28457193]
[1735751895410,0.60551107,705.09,702.81,0.28457193]
[1735751895411,0.26161065,704.71,702.81,0.28457193]
[1735751895611,0.26161065,704.7,702.81,0.28457193]
[1735751895806,0.26161065,704.69,702.81,0.28457193]
[1735751896012,0.26161065,704.68,702.81,0.28457193]
[1735751896214,0.26161065,704.67,702.81,0.28457193]
[1735751896514,0.26161065,704.66,702.81,0.28457193]
[1735751896812,1.48405072,704.68,702.81,0.28457193]
[1735751896813,0.2616454,704.65,702.81,0.28457193]
[1735751897009,0.2616454,704.64,702.81,0.28457193]
[1735751897212,0.2616454,704.63,702.81,0.28457193]
[1735751897406,0.2616454,704.62,702.81,0.28457193]
[1735751897610,0.2616454,704.61,702.81,0.28457193]
[1735751897810,0.2616454,704.6,702.81,0.28457193]
[1735751898009,0.2616454,704.59,702.81,0.28457193]
[1735751898206,0.2616454,704.58,702.81,0.28457193]
[1735751898408,0.2616454,704.57,702.81,0.28457193]
[1735751898608,0.2616454,704.56,702.81,0.28457193]
[1735751898914,0.2616454,704.55,702.81,0.28457193]
[1735751899108,0.2616454,704.54,702.81,0.28457193]
[1735751899314,1.48405072,704.68,702.81,0.28457193]
[1735751899613,0.2616238,704.67,702.81,0.28457193]
[1735751900013,1.48405072,704.68,702.81,0.28457193]
[1735751900208,0.26162607,704.67,702.81,0.28457193]
[1735751902008,1.48405072,704.68,702.81,0.28457193]
[1735751902210,0.26163421,704.67,702.81,0.28457193]
[1735751904617,0.26161861,704.66,702.81,0.28457193]
[1735751904817,0.26161861,704.65,702.81,0.28457193]
[1735751905021,0.26161861,704.64,702.81,0.28457193]
[1735751905317,0.26161861,704.63,702.81,0.28457193]
[1735751905518,0.26161861,704.62,702.81,0.28457193]
[1735751905819,0.26161861,704.61,702.81,0.28457193]
[1735751906012,0.26161861,704.6,702.81,0.28457193]
[1735751906213,1.48405072,704.68,702.81,0.28457193]
[1735751906214,0.26161861,704.59,702.81,0.28457193]
[1735751906516,1.74573789,704.58,702.81,0.28457193]
[1735751906719,0.26161861,704.57,702.81,0.28457193]
[1735751907919,1.48411928,704.58,702.81,0.28457193]
[1735751908219,0.26162257,704.57,702.81,0.28457193]
[1735751912516,1.48411928,704.58,702.81,0.28457193]
[1735751912717,0.26164646,704.57,702.81,0.28457193]
[1735751914622,0.26164646,704.56,702.81,0.28457193]
[1735751914823,0.26164646,704.55,702.81,0.28457193]
[1735751915120,0.26164589,704.54,702.81,0.28457193]
[1735751915321,0.26164589,704.53,702.81,0.28457193]
[1735751915522,0.26164589,704.52,702.81,0.28457193]
[1735751915722,0.26164589,704.51,702.81,0.28457193]
[1735751915922,0.26164589,704.5,702.81,0.28457193]
[1735751916122,0.26164589,704.49,702.81,0.28457193]
[1735751916325,0.26164589,704.48,702.81,0.28457193]
[1735751916519,0.26164589,704.47,702.81,0.28457193]
[1735751916723,0.26164589,704.46,702.81,0.28457193]
[1735751916918,0.26164589,704.45,702.81,0.28457193]
[1735751917122,1.48408236,704.47,702.81,0.28457193]
[1735751917123,0.26164589,704.44,702.81,0.28457193]
[1735751917320,0.26164589,704.43,702.81,0.28457193]
[1735751917524,0.26164589,704.42,702.81,0.28457193]
[1735751917719,0.26164589,704.46,702.81,0.28457193]
[1735751917920,0.26164589,704.45,702.81,0.28457193]
[1735751918121,0.26164589,704.44,702.81,0.28457193]
[1735751918428,0.26164589,704.43,702.81,0.28457193]
[1735751918626,0.26164589,704.42,702.81,0.28457193]
[1735751918827,0.26164589,704.41,702.81,0.28457193]
[1735751919028,0.26164589,704.4,702.81,0.28457193]
[1735751919227,0.26164589,704.39,702.81,0.28457193]
[1735751919427,0.26164589,704.38,702.81,0.28457193]
[1735751919624,0.26164589,704.37,702.81,0.28457193]
[1735751919831,0.26164589,704.36,702.81,0.28457193]
[1735751920028,0.26164589,704.35,702.81,0.28457193]
[1735751920222,1.48408236,704.47,702.81,0.28457193]
[1735751920421,0.26162873,704.46,702.81,0.28457193]
[1735751922225,0.26162873,704.46,702.91,1.06473081]
[1735751922823,1.48408236,704.47,702.91,1.06473081]
[1735751923028,1.05845224,704.34,703.0,1.06473081]
[1735751923228,0.26164778,704.33,703.0,1.06473081]
[1735751923825,0.26167951,704.32,703.0,1.06473081]
[1735751924033,1.05845224,704.17,702.93,1.06473081]
[1735751924227,0.26167951,704.16,702.93,1.06473081]
[1735751925129,0.26168717,704.15,702.93,1.06473081]
[1735751925333,0.26168717,704.14,702.86,1.06473081]
[1735751925533,0.26168717,704.13,702.86,1.06473081]
[1735751925731,0.26168717,704.12,702.86,1.06473081]
[1735751925927,1.05845224,704.2,702.86,1.06473081]
[1735751926133,0.26168738,704.19,702.86,1.06473081]
[1735751926835,0.26168738,704.19,702.84,1.06473081]
[1735751927034,0.26168738,704.18,702.84,1.06473081]
[1735751927236,0.26168738,704.17,702.84,1.06473081]
[1735751927830,0.26168738,704.17,702.81,1.34930274]
[1735751928233,0.26169304,704.16,702.81,1.34930274]
[1735751928436,0.26169304,704.15,702.81,1.34930274]
[1735751928634,0.26169304,704.14,702.81,1.34930274]
[1735751928835,1.48431974,704.18,702.81,1.34930274]
[1735751928836,0.26169304,704.13,702.81,1.34930274]
[1735751929030,0.26169304,704.12,702.81,1.34930274]
[1735751929232,0.26169304,704.11,702.81,1.34930274]
[1735751929438,0.26169304,704.1,702.81,1.34930274]
[1735751929635,0.26169304,704.09,702.81,1.34930274]
[1735751929836,1.48431974,704.18,702.81,1.34930274]
[1735751930036,0.2616987,704.17,702.82,1.06473081]
[1735751930630,1.48431974,704.18,702.81,0.28457193]
[1735751930833,0.26169897,704.17,702.81,0.28457193]
[1735751931433,0.2617011,704.16,702.81,0.28457193]
[1735751931634,0.2617011,704.15,702.81,0.28457193]
[1735751931829,0.2617011,704.14,702.81,0.28457193]
[1735751932038,1.05845224,704.08,702.92,1.06473081]
[1735751932234,0.2617011,704.07,702.92,1.06473081]
[1735751933435,0.2617011,704.07,702.81,0.28457193]
[1735751933436,1.05845224,704.13,702.91,1.06473081]
[1735751933735,0.26169196,704.12,702.91,1.06473081]
[1735751934341,0.26169196,704.11,702.91,1.06473081]
[1735751934541,0.26169196,704.1,702.91,1.06473081]
[1735751934742,0.26169196,704.09,702.91,1.06473081]
[1735751934936,0.26169196,704.08,702.91,1.06473081]
[1735751935139,0.26169196,704.07,702.9,1.06473081]
[1735751935433,1.05845224,704.14,702.9,1.06473081]
[1735751935434,0.26169196,704.06,702.9,1.06473081]
[1735751935638,0.26169196,704.05,702.9,1.06473081]
[1735751935840,0.26169196,704.04,702.9,1.06473081]
[1735751936043,0.26171697,704.03,702.9,1.06473081]
[1735751936243,1.48431974,704.18,702.81,0.28457193]
[1735751936244,0.26171697,704.02,702.88,1.06473081]
[1735751936444,0.26171697,704.01,702.88,1.06473081]
[1735751936642,0.26171697,704.0,702.88,1.06473081]
[1735751936840,0.26171697,703.99,702.88,1.06473081]
[1735751937038,0.26171697,703.98,702.88,1.06473081]
[1735751937240,0.26171697,703.97,702.88,1.06473081]
[1735751937441,0.26171697,703.96,702.81,1.34930274]
[1735751937841,1.48448331,703.97,702.81,1.34930274]
[1735751938744,1.48448331,703.97,702.81,0.28457193]
[1735751944136,0.26169954,703.96,702.81,0.28457193]
[1735751945245,0.26169954,703.96,702.81,1.34930274]
[1735751945439,0.26171174,703.95,702.81,1.34930274]
[1735751945644,1.48448331,703.97,702.81,1.34930274]
[1735751945843,0.26169266,703.96,702.81,1.34930274]
[1735751946238,0.26169266,703.96,702.85,1.06473081]
[1735751946444,1.48448331,703.97,702.85,1.06473081]
[1735751947647,1.48448331,703.97,702.93,1.06473081]
[1735751947845,0.26169204,703.96,702.93,1.06473081]
[1735751948049,1.48448331,703.97,702.93,1.06473081]
[1735751948346,0.26169772,703.96,702.93,1.06473081]
[1735751948747,0.26169772,703.96,702.89,1.06473081]
[1735751949647,1.48448331,703.97,702.89,1.06473081]
[1735751949945,1.48448331,703.97,702.91,1.06473081]
[1735751950846,1.48448331,703.97,702.84,1.06473081]
[1735751951648,1.48448331,703.97,702.81,0.28457193]
[1735751955549,0.26171921,703.96,702.81,0.28457193]
[1735751955947,1.48448331,703.97,702.81,0.28457193]
[1735751956143,1.48448331,703.97,702.83,1.06473081]
[1735751956144,0.26173415,703.96,702.83,1.06473081]
[1735751956749,1.48448331,703.97,702.83,1.06473081]
[1735751957257,1.48448331,703.97,702.81,0.28457193]
[1735751958454,0.26178171,703.96,702.39,1.06473081]
[1735751958652,0.26179211,703.95,702.4,0.28473804]
[1735751958853,0.26179211,703.94,702.4,0.28473804]
[1735751959053,0.26179211,703.93,702.4,0.28473804]
[1735751959252,0.26179211,703.92,702.4,0.28473804]
[1735751959452,0.26179211,703.91,702.4,0.28473804]
[1735751959655,1.32024435,703.9,702.57,1.06473081]
[1735751959853,0.26179211,703.89,702.57,1.06473081]
[1735751960349,1.48478944,703.89,702.57,1.06473081]
[1735751960950,1.48478944,703.89,702.58,1.06473081]
[1735751962055,1.48478944,703.89,702.61,1.06473081]
[1735751963059,1.48478944,703.89,702.65,1.06473081]
[1735751964157,1.48478944,703.89,702.69,1.06473081]
[1735751964555,1.05845224,704.26,702.69,1.06473081]
[1735751964759,1.48445693,704.06,702.69,1.06473081]
[1735751964957,0.26167299,704.05,702.69,1.06473081]
[1735751965157,0.26167299,704.04,702.69,1.06473081]
[1735751965357,0.26167299,704.03,702.69,1.06473081]
[1735751965558,0.26167299,704.03,702.4,0.28473804]
[1735751965559,0.26167299,704.02,702.95,1.06473081]
[1735751965857,0.26167299,704.01,702.95,1.06473081]
[1735751966054,1.48436722,704.06,702.95,1.06473081]
[1735751966358,0.26166733,704.05,702.95,1.06473081]
[1735751966559,0.26167567,704.05,702.98,1.06473081]
[1735751967762,0.26167567,704.05,702.96,1.06473081]
[1735751969058,1.48436722,704.06,702.66,1.06451755]
[1735751969059,1.48436722,704.06,702.97,1.06473081]
[1735751969657,0.2616598,704.05,702.97,1.06473081]
[1735751969862,1.48436722,704.06,702.97,1.06473081]
[1735751970960,1.48436722,704.06,702.41,0.72644683]
[1735751970961,1.48436722,704.06,702.98,1.06473081]
[1735751972262,1.48436722,704.06,702.96,1.06473081]
[1735751972964,1.05845224,704.24,702.96,1.06473081]
[1735751973156,1.48414038,704.14,702.96,1.06473081]
[1735751973359,0.26164237,704.13,702.96,1.06473081]
[1735751973663,0.26164237,704.12,703.01,1.06473081]
[1735751973856,0.26164237,704.11,703.01,1.06473081]
[1735751974059,0.26164237,704.1,703.01,1.06473081]
[1735751974263,0.26164237,704.13,703.01,1.06473081]
[1735751974456,0.26164237,704.12,703.01,1.06473081]
[1735751974664,0.26164237,704.11,703.01,1.06473081]
[1735751974964,0.26164237,704.1,702.97,1.06473081]
[1735751975159,0.26164237,704.09,702.97,1.06473081]
[1735751975463,1.48409819,704.14,702.97,1.06473081]
[1735751975663,0.26164392,704.13,702.97,1.06473081]
[1735751975962,0.26164392,704.13,702.41,0.72644683]
[1735751975963,0.26164392,704.13,702.96,1.06473081]
[1735751976958,1.48409819,704.14,702.96,1.06473081]
[1735751977160,1.48409819,704.14,702.99,1.06473081]
[1735751978063,1.48409819,704.14,702.73,1.06473081]
[1735751979265,1.48409819,704.14,702.76,1.06473081]
[1735751980465,1.48409819,704.14,701.84,2.17339001]
[1735751980466,1.48409819,704.14,702.68,1.06473081]
[1735751981869,1.48409819,704.14,702.69,1.06473081]
[1735751983167,1.48409819,704.14,702.67,1.06473081]
[1735751983964,1.48409819,704.14,702.68,1.06473081]
[1735751986170,1.48409819,704.14,702.67,1.06473081]
[1735751987569,1.48409819,704.14,702.74,1.06473081]
[1735751988468,1.48409819,704.14,702.03,1.27742106]
[1735751988469,1.48409819,704.14,702.72,1.06473081]
[1735751989473,1.48409819,704.14,702.41,1.06451755]
[1735751989474,1.48409819,704.14,702.8,1.06473081]
[1735751990473,1.48409819,704.14,702.83,1.06473081]
[1735751991675,0.26165715,704.13,702.83,1.06473081]
[1735751991879,0.26165715,704.13,702.81,1.06473081]
[1735751992774,0.26165894,704.12,702.81,1.06473081]
[1735751992975,0.26165894,704.11,702.85,1.06473081]
[1735751993174,0.26165894,704.1,702.85,1.06473081]
[1735751993373,0.26165894,704.13,702.85,1.06473081]
[1735751993570,0.26165894,704.12,702.85,1.06473081]
[1735751993875,0.26165894,704.11,702.85,1.06473081]
[1735751994076,0.26165894,704.1,702.95,1.06473081]
[1735751994378,0.26165894,704.09,702.95,1.06473081]
[1735751994577,0.26165894,704.08,702.95,1.06473081]
[1735751994770,1.48409819,704.14,702.95,1.06473081]
[1735751994771,0.26165894,704.07,702.95,1.06473081]
[1735751995075,0.26165894,704.06,702.95,1.06473081]
[1735751995276,0.26165894,704.05,702.95,1.06473081]
[1735751995476,1.48409819,704.14,702.95,1.06473081]
[1735751995777,0.2616587,704.13,702.95,1.06473081]
[1735751996172,1.05845224,704.12,703.07,1.06473081]
[1735751996376,0.2616587,704.11,703.07,1.06473081]
[1735751997177,1.05845224,704.1,703.14,1.06473081]
[1735751998380,1.48396634,704.22,703.02,1.06473081]
[1735751999775,1.48396634,704.22,702.99,1.06473081]
[1735752000380,1.48396634,704.22,703.02,1.06473081]
[1735752001180,1.48396634,704.22,703.03,1.06473081]
[1735752002182,1.05845224,704.27,703.03,1.06473081]
[1735752002380,1.05845224,704.26,703.03,1.06473081]
[1735752002582,1.4839347,704.22,703.03,1.06473081]
[1735752003780,1.4839347,704.22,702.34,1.27742106]
[1735752003781,1.4839347,704.22,703.05,1.06473081]
[1735752003981,1.05845224,704.28,703.05,1.06473081]
[1735752005183,1.05845224,704.33,703.2,1.06473081]
[1735752006282,1.48374489,704.37,703.18,1.06473081]
[1735752007378,0.26156205,704.36,703.18,1.06473081]
[1735752007584,0.26156877,704.35,703.18,1.06473081]
[1735752007887,0.26156877,704.34,703.18,1.06473081]
[1735752008084,0.26156877,704.33,703.18,1.06473081]
[1735752008389,0.26156877,704.32,703.27,1.06473081]
[1735752008684,1.48374489,704.37,703.27,1.06473081]
[1735752008685,0.26156877,704.31,703.27,1.06473081]
[1735752008988,0.26156877,704.3,703.27,1.06473081]
[1735752009180,0.26156877,704.29,703.27,1.06473081]
[1735752009385,0.26156877,704.28,703.26,1.06473081]
[1735752009584,0.26156877,704.27,703.26,1.06473081]
[1735752009786,0.26156877,704.26,703.26,1.06473081]
[1735752009988,0.26156877,704.25,703.26,1.06473081]
[1735752010189,1.48374489,704.37,703.26,1.06473081]
[1735752010390,0.26155918,704.36,703.26,1.06473081]
[1735752010987,1.48374489,704.37,703.26,1.06473081]
[1735752011689,1.48374489,704.37,703.24,1.06473081]
[1735752013093,1.48374489,704.37,703.15,1.06473081]
[1735752014093,0.26162735,704.36,703.15,1.06473081]
[1735752014392,1.48374489,704.37,702.87,1.06473081]
[1735752015293,1.48374489,704.37,702.83,1.06473081]
[1735752016392,1.48374489,704.37,702.85,1.06473081]
[1735752017594,1.48374489,704.37,702.41,0.725015]
[1735752017595,1.48374489,704.37,702.87,1.06473081]
[1735752018396,1.48374489,704.37,702.85,1.06473081]
[1735752019794,1.48374489,704.37,702.41,0.725015]
[1735752019795,1.48374489,704.37,702.87,1.06473081]
[1735752022189,1.48374489,704.37,702.88,1.06473081]
[1735752022894,0.26160419,704.36,702.88,1.06473081]
[1735752023395,0.26160419,704.36,702.89,1.06473081]
[1735752023998,1.48374489,704.37,702.89,1.06473081]
[1735752024197,0.26160229,704.36,702.89,1.06473081]
[1735752024398,1.32005453,704.36,703.13,1.06473081]
[1735752024698,0.26160229,704.35,703.13,1.06473081]
[1735752025499,0.26160229,704.35,703.17,1.06473081]
[1735752025692,0.26160229,704.34,703.17,1.06473081]
[1735752025992,1.48374489,704.37,703.17,1.06473081]
[1735752026196,0.26159121,704.36,703.17,1.06473081]
[1735752026794,0.26159121,704.36,703.18,1.06473081]
[1735752028100,0.26159121,704.36,703.1,1.06473081]
[1735752028101,1.05845224,704.29,703.1,1.06473081]
[1735752028298,0.26159121,704.28,703.1,1.06473081]
[1735752028491,1.05845224,704.29,703.1,1.06473081]
[1735752028696,1.48396634,704.27,703.1,1.06473081]
[1735752028899,0.2616298,704.26,703.1,1.06473081]
[1735752029102,1.05845224,704.25,703.09,1.06473081]
[1735752029398,0.2616298,704.24,703.09,1.06473081]
[1735752030299,0.2616298,704.24,702.55,2.17339001]
[1735752030300,0.2616298,704.24,703.11,1.06473081]
[1735752030498,0.2616298,704.25,703.11,1.06473081]
[1735752030801,0.2616298,704.24,703.11,1.06473081]
[1735752031097,1.05845224,704.26,703.11,1.06473081]
[1735752031098,0.2616298,704.23,703.11,1.06473081]
[1735752031295,0.26162081,704.22,703.11,1.06473081]
[1735752031495,1.48396634,704.27,703.11,1.06473081]
[1735752031496,0.26162081,704.21,703.11,1.06473081]
[1735752031695,0.26162081,704.2,703.11,1.06473081]